bitfinex/quotes_ETHUSD_20240823
["timestamp","ask_amount","ask_price","bid_price","bid_amount"]
[1724448710885,10.2125,2773.0,2772.2,19.34]
[1724448711089,1.02125,2772.9,2772.2,19.34]
[1724448711573,4.62762,2772.9,2772.2,19.34]
[1724448712229,3.60654,2772.8,2772.2,19.34]
[1724448713122,4.62762,2772.9,2772.2,19.34]
[1724448713329,3.60647,2772.8,2772.2,19.34]
[1724448713634,4.62762,2772.9,2772.2,19.34]
[1724448714393,3.0,2773.0,2772.2,23.08146478]
[1724448714593,3.0,2773.0,2772.2,26.68869478]
[1724448714996,3.0,2773.0,2772.2,30.29592478]
[1724448715338,3.0,2773.0,2772.2,26.68869478]
[1724448715692,3.0,2773.0,2772.3,19.34]
[1724448716519,3.0,2773.0,2772.4,9.2643]
[1724448716739,3.60607,2773.1,2772.4,9.2643]
[1724448716901,3.0,2773.0,2772.4,9.2643]
[1724448717105,6.6063,2773.0,2772.4,9.2643]
[1724448717304,3.0,2773.0,2772.4,9.2643]
[1724448717844,3.60642,2772.9,2772.3,19.34]
[1724448718354,3.60659,2772.7,2772.3,19.34]
[1724448720354,7.21286,2772.9,2772.3,19.34]
[1724448720558,3.60649,2772.8,2772.3,19.34]
[1724448721670,3.60649,2772.8,2772.1,9.2643]
[1724448721972,0.721291,2772.7,2772.1,9.2643]
[1724448722318,4.327961,2772.7,2772.1,9.2643]
[1724448722733,0.721291,2772.7,2772.1,9.2643]
[1724448722940,3.60672,2772.6,2772.0,25.9644372]
[1724448723640,13.884281,2772.7,2772.0,25.9644372]
[1724448723839,5.3558871,2772.6,2772.0,25.9644372]
[1724448724624,19.76894,2773.0,2772.0,25.9644372]
[1724448724884,4.15641,2772.9,2772.0,29.5718572]
[1724448725227,4.15641,2772.9,2772.1,9.2643]
[1724448725427,0.55,2772.9,2772.1,9.2643]
[1724448725979,6.60622,2773.0,2772.2,3.74146478]
[1724448726164,3.0,2773.0,2772.2,3.74146478]
[1724448726482,3.0,2773.1,2772.4,9.2643]
[1724448727334,6.60609,2773.1,2772.4,9.2643]
[1724448727534,3.0,2773.1,2772.4,9.2643]
[1724448727846,3.660596,2773.1,2772.4,9.2643]
[1724448728535,7.266666,2773.1,2772.4,9.2643]
[1724448728876,3.660596,2773.1,2772.4,9.2643]
[1724448729477,7.266666,2773.1,2772.4,9.2643]
[1724448730283,3.60645,2772.9,2772.4,9.2643]
[1724448730487,0.360645,2772.8,2772.4,9.2643]
[1724448732279,7.266716,2773.1,2772.4,9.2643]
[1724448732775,3.660596,2773.1,2772.4,9.2643]
[1724448733275,0.660596,2773.1,2772.4,9.2643]
[1724448733489,4.266776,2773.1,2772.4,9.2643]
[1724448733688,3.0,2773.0,2772.4,9.2643]
[1724448734343,3.7266776,2773.0,2772.4,9.2643]
[1724448736038,3.0,2773.0,2772.4,9.2643]
[1724448737597,6.60603,2773.2,2772.4,9.2643]
[1724448738757,3.0,2773.2,2772.5,3.60681]
[1724448739157,3.0,2773.2,2772.4,9.2643]
[1724448739338,3.0,2773.2,2772.4,11.21388972]
[1724448739737,3.0,2773.2,2772.4,14.82085972]
[1724448741262,6.60594,2773.2,2772.4,14.82085972]
[1724448742482,6.60594,2773.2,2772.4,34.16085972]
[1724448744210,3.60608,2773.1,2772.4,30.55388972]
[1724448744413,3.0,2773.0,2772.5,1.39617751]
[1724448745773,6.60621,2773.0,2772.4,30.55388972]
[1724448746186,6.60621,2773.0,2772.4,28.6043]
[1724448746675,3.0,2773.0,2772.4,28.6043]
[1724448747016,3.60633,2772.9,2772.4,28.6043]
[1724448747414,7.21275,2772.9,2772.4,28.6043]
[1724448747599,7.21279,2772.9,2772.4,28.6043]
[1724448747801,3.0,2773.0,2772.4,28.98758325]
[1724448748002,6.60628,2773.0,2772.4,28.98758325]
[1724448748393,6.60628,2773.0,2772.4,9.64758325]
[1724448749787,3.0,2773.0,2772.4,9.64758325]
[1724448750286,6.60624,2773.0,2772.4,9.64758325]
[1724448750633,3.0,2773.0,2772.4,9.64758325]
[1724448750954,3.13013766,2773.8,2772.6,9.5743]
[1724448751086,13.32693366,2774.1,2773.1,9.5743]
[1724448751087,3.60504,2773.9,2773.1,9.5743]
[1724448751285,3.60504,2773.9,2773.2,1.318038]
[1724448751489,3.605,2774.0,2773.1,9.5743]
[1724448751490,3.60518,2773.8,2773.1,9.5743]
[1724448751745,7.21044,2773.8,2773.1,9.5743]
[1724448751904,3.60518,2773.8,2773.1,9.5743]
[1724448752503,3.60529,2773.7,2773.1,9.5743]
[1724448754040,3.60518,2773.8,2773.1,9.5743]
[1724448754217,3.0,2773.7,2773.1,9.5743]
[1724448754420,3.0,2773.7,2773.1,10.63046164]
[1724448755941,3.0,2773.9,2773.2,3.60586]
[1724448756286,3.0,2773.9,2773.3,9.5216]
[1724448759708,3.0,2774.1,2773.4,3.60565]
[1724448759937,3.0,2774.1,2773.4,6.852375]
[1724448760432,3.0,2774.1,2773.4,26.192375]
[1724448760811,3.0,2774.1,2773.5,9.5216]
[1724448761213,3.60471,2774.2,2773.5,9.5216]
[1724448762744,3.60444,2774.4,2773.5,32.46706]
[1724448762950,3.0,2774.3,2773.5,32.46706]
[1724448763146,6.60453,2774.3,2773.5,32.46706]
[1724448764385,3.60466,2774.2,2773.5,19.34]
[1724448764754,3.60485,2774.1,2773.5,19.34]
[1724448764951,13.30755,2774.1,2773.5,19.34]
[1724448765154,4.473215,2774.0,2773.5,19.34]
[1724448766399,4.473215,2774.0,2773.3,9.5216]
[1724448766400,7.20998,2774.0,2773.3,9.5216]
[1724448766599,3.60497,2774.0,2773.3,9.5216]
[1724448766961,3.60504,2773.9,2773.3,9.5216]
[1724448767154,3.60471,2774.2,2773.3,9.5216]
[1724448767399,3.0,2774.1,2773.4,3.60564]
[1724448767775,3.660471,2774.1,2773.4,3.60564]
[1724448767992,3.660471,2774.1,2773.1,4.15673533]
[1724448767993,3.0,2774.1,2773.6,3.60541]
[1724448768200,3.0,2774.4,2773.7,9.5216]
[1724448768407,3.60442,2774.4,2773.7,9.5216]
[1724448768575,3.0,2774.3,2773.7,9.5216]
[1724448768770,3.0,2774.3,2773.0,9.5216]
[1724448768771,9.7027,2774.2,2773.0,9.5216]
[1724448769012,13.30858,2773.3,2772.3,9.5216]
[1724448769519,3.60634,2772.9,2772.3,9.5216]
[1724448769723,7.21278,2772.9,2772.3,9.5216]
[1724448770021,3.60634,2772.9,2772.3,9.5216]
[1724448770233,4.327587,2772.9,2772.3,9.5216]
[1724448770375,3.0,2773.2,2772.4,3.60693]
[1724448770571,6.60595,2773.2,2772.3,13.12867]
[1724448771000,6.60594,2773.2,2772.3,13.12861]
[1724448772571,3.0,2773.2,2772.3,13.12866]
[1724448772773,3.0,2773.2,2772.6,3.60663]
[1724448772973,6.60563,2773.5,2772.6,3.60663]
[1724448773175,0.55,2773.4,2772.5,3.60677]
[1724448773489,7.7616,2773.4,2772.5,3.60685]
[1724448773693,4.07616,2773.3,2772.5,3.60685]
[1724448774015,7.682,2773.3,2772.5,3.55685]
[1724448775192,7.682,2773.3,2772.4,19.34]
[1724448775654,4.07616,2773.3,2772.4,19.34]
[1724448775938,4.07616,2773.3,2772.3,13.12861]
[1724448775939,9.3742,2773.6,2772.8,3.60646]
[1724448776088,3.60521,2773.8,2772.9,9.047]
[1724448776517,3.60531,2773.7,2772.9,12.65331]
[1724448776719,3.60531,2773.7,2772.9,9.047]
[1724448776923,4.326492,2773.6,2772.9,9.047]
[1724448777594,3.0,2773.5,2772.9,9.047]
[1724448778035,6.60555,2773.5,2772.9,9.047]
[1724448778411,16.22455,2773.5,2772.8,19.34]
[1724448780023,16.22455,2773.5,2772.9,13.26915]
[1724448780024,3.0,2773.5,2772.9,13.26915]
[1724448780199,3.60513,2773.9,2773.0,3.260915]
[1724448780598,3.0,2773.8,2773.0,3.260915]
[1724448781113,3.0,2773.8,2773.0,22.600915]
[1724448781313,3.0,2773.8,2773.1,3.60605]
[1724448781622,3.60481,2774.1,2773.2,9.6629]
[1724448781623,6.60481,2774.1,2773.2,9.6629]
[1724448781950,8.807281,2774.0,2773.2,9.6629]
[1724448782152,7.1549,2774.0,2773.2,13.26883]
[1724448782440,7.1549,2774.0,2773.2,9.6629]
[1724448782794,3.60503,2773.9,2773.2,9.6629]
[1724448783152,3.0,2774.0,2773.2,32.6088]
[1724448783448,3.0,2774.1,2773.2,32.6088]
[1724448783627,5.257342,2774.0,2773.2,29.0029]
[1724448784323,8.862322,2774.0,2773.2,29.0029]
[1724448784655,5.257342,2774.0,2773.2,29.0029]
[1724448784959,1.652372,2774.0,2773.3,3.6058]
[1724448785298,3.0,2774.1,2773.3,3.6058]
[1724448785515,9.619,2774.0,2773.4,3.60566]
[1724448785742,3.60568,2773.4,2772.6,3.60663]
[1724448785901,16.83048,2773.4,2772.6,3.60663]
[1724448786227,13.22468,2773.4,2772.6,3.60663]
[1724448786598,16.83044,2773.4,2772.6,3.60663]
[1724448786794,14.907724,2773.4,2772.6,3.60663]
[1724448787239,11.302044,2773.4,2772.2,9.6629]
[1724448787446,3.60601,2773.2,2772.4,3.6069]
[1724448787627,9.619,2773.1,2772.3,3.60704]
[1724448787798,10.334601,2773.1,2772.2,13.27002]
[1724448788009,10.334601,2773.1,2772.2,13.27006]
[1724448788699,10.334601,2773.1,2772.4,3.6069]
[1724448789099,13.940681,2773.1,2772.2,16.8772]
[1724448789448,4.06701,2773.0,2772.2,13.27004]
[1724448789946,0.715601,2773.1,2772.5,3.60677]
[1724448790750,10.169,2773.3,2772.5,3.60677]
[1724448793471,13.77483,2773.3,2772.5,3.60677]
[1724448793602,3.60616,2773.1,2772.3,19.34]
[1724448793939,4.15632,2773.0,2772.3,19.34]
[1724448794104,0.776248,2772.9,2772.3,19.34]
[1724448794559,4.382588,2772.9,2772.3,19.34]
[1724448795046,3.60666,2772.7,2772.3,19.34]
[1724448795250,4.382608,2772.9,2772.1,3.60727]
[1724448796549,0.776248,2772.9,2772.2,13.18709]
[1724448798016,9.8564,2772.8,2772.2,3.60719]
[1724448798347,9.8564,2772.8,2772.2,3.6072]
[1724448799334,1.6132648,2772.7,2772.0,3.60746]
[1724448799901,1.0632648,2772.7,2772.0,3.60741]
[1724448800734,1.0632648,2772.7,2772.0,7.21483]
[1724448800933,1.0632648,2772.7,2772.0,3.60741]
[1724448801148,1.09196648,2772.6,2772.0,3.60741]
[1724448801315,1.09196648,2772.6,2772.0,7.21484]
[1724448801520,1.09196648,2772.6,2772.1,3.60736]
[1724448802258,1.09196648,2772.6,2771.9,33.1795572]
[1724448802403,1.09196648,2772.6,2772.1,13.18724]
[1724448802608,1.09196648,2772.6,2772.1,3.60728]
[1724448802826,1.09196648,2772.6,2772.1,7.21456]
[1724448803017,1.0632648,2772.7,2772.1,3.60728]
[1724448803307,1.0632648,2772.7,2772.2,3.60715]
[1724448803506,1.0632648,2772.7,2772.0,3.60739]
[1724448804925,1.0632648,2772.7,2772.0,22.94739]
[1724448806439,1.0632648,2772.7,2772.0,19.34]
[1724448806643,1.45261648,2772.6,2772.0,19.34]
[1724448807328,5.05941648,2772.6,2772.0,19.34]
[1724448807521,9.8564,2772.5,2772.0,19.34]
[1724448810561,1.45261648,2772.6,2772.0,19.34]
[1724448810872,13.463,2772.7,2771.8,3.60767]
[1724448811024,0.55,2772.6,2771.9,3.60763]
[1724448811624,0.55,2772.6,2771.7,3.60788]
[1724448811828,9.0386,2772.5,2771.7,3.60788]
[1724448812124,12.64546,2772.5,2771.7,3.6078]
[1724448812324,14.325666,2772.5,2771.7,7.21559]
[1724448812629,14.325666,2772.5,2771.7,3.60779]
[1724448813057,10.718806,2772.5,2771.8,3.60775]
[1724448814490,14.325656,2772.5,2771.6,3.60801]
[1724448814793,4.15705,2772.4,2771.6,3.60801]
[1724448814994,1.179169,2772.3,2771.6,3.60801]
[1724448815595,3.60727,2772.2,2771.5,6.6244372]
[1724448815743,9.0386,2772.1,2771.5,6.6244372]
[1724448816347,9.0386,2772.1,2771.5,10.2325072]
[1724448816933,9.0386,2772.1,2771.5,3.60807]
[1724448817404,4.15751,2772.0,2771.2,3.60845]
[1724448817552,9.0983,2771.9,2771.2,3.60845]
[1724448817754,9.0983,2771.9,2770.6,3.6093]
[1724448817755,3.60829,2771.4,2770.4,19.34]
[1724448817949,7.15948987,2771.9,2770.3,3.60962]
[1724448817950,12.70671,2771.3,2770.3,3.60962]
[1724448818183,12.70671,2771.3,2770.4,3.60957]
[1724448818378,1.820671,2771.2,2770.4,3.60957]
[1724448818606,1.820671,2771.2,2770.6,3.6093]
[1724448818755,1.270671,2771.2,2770.6,3.6093]
[1724448819268,9.0983,2771.3,2770.7,3.60917]
[1724448819819,9.0983,2771.3,2770.6,3.6093]
[1724448821072,9.0983,2771.3,2770.4,3.60956]
[1724448821073,9.66401336,2771.3,2770.4,3.60956]
[1724448821276,9.66401336,2771.3,2770.5,3.60942]
[1724448823613,9.0983,2771.3,2770.5,3.60942]
[1724448824129,1.270658,2771.2,2770.5,3.60942]
[1724448824677,1.270658,2771.2,2770.3,3.60962]
[1724448825409,4.879208,2771.2,2770.2,10.2341972]
[1724448825580,9.6483,2771.1,2770.2,10.2341972]
[1724448825785,3.6088,2771.0,2770.2,10.2341972]
[1724448825984,1.32571,2770.9,2770.2,10.2341972]
[1724448828491,12.70748,2770.8,2770.2,6.6244372]
[1724448828690,16.86665,2770.8,2770.0,19.34]
[1724448829042,13.25747,2770.8,2770.0,19.34]
[1724448829191,1.458318,2770.7,2770.0,19.34]
[1724448830531,5.067528,2770.7,2770.0,19.34]
[1724448831050,9.0983,2770.5,2769.8,3.61028]
[1724448831384,12.70776,2770.5,2769.8,3.61028]
[1724448831588,3.60977,2770.3,2768.7,9.66761548]
[1724448831918,9.8401,2769.7,2768.7,9.1018]
[1724448832130,9.8401,2769.7,2769.0,3.61141]
[1724448833439,4.1607,2769.6,2768.8,3.61163]
[1724448833794,3.61077,2769.5,2768.6,7.22372]
[1724448833999,3.61077,2769.5,2768.7,4.334152]
[1724448834000,9.8401,2769.4,2768.7,4.334152]
[1724448834409,13.45103,2769.4,2768.6,3.61182]
[1724448834633,13.45103,2769.4,2768.7,3.61178]
[1724448835445,13.45103,2769.4,2768.6,3.61182]
[1724448835646,13.45103,2769.4,2768.6,7.22367]
[1724448836061,13.45103,2769.4,2768.6,3.61182]
[1724448837057,9.8401,2769.4,2768.7,3.61178]
[1724448837262,11.64288,2769.4,2768.6,3.61182]
[1724448837476,11.64288,2769.4,2768.6,7.22366]
[1724448837638,11.64288,2769.4,2768.7,3.6118]
[1724448837961,9.3327,2769.7,2769.1,7.22245]
[1724448838162,9.3327,2769.7,2769.1,3.6112]
[1724448838379,9.3327,2769.7,2768.9,3.61142]
[1724448838793,12.94329,2769.7,2768.9,3.61146]
[1724448838931,12.9432,2769.7,2768.9,3.61146]
[1724448839130,1.29432,2769.6,2768.9,3.61146]
[1724448839329,9.3327,2769.7,2768.9,3.61146]
[1724448839631,9.3327,2769.7,2769.0,3.61138]
[1724448841091,9.3327,2769.7,2769.1,3.61124]
[1724448841444,3.0,2769.9,2769.3,3.611]
[1724448841640,9.3327,2770.3,2769.2,13.2723]
[1724448841840,9.3327,2770.7,2769.4,13.27206]
[1724448842087,9.3327,2771.2,2770.3,3.6097]
[1724448842404,12.94134,2771.2,2770.3,3.6097]
[1724448842758,9.3327,2771.2,2770.0,9.6612]
[1724448842976,3.66981599,2772.5,2770.7,9.6612]
[1724448842977,3.60772,2771.9,2770.7,9.6612]
[1724448843144,9.3327,2770.5,2769.2,13.64901268]
[1724448843488,3.60972,2770.3,2769.4,3.61088]
[1724448843859,9.3327,2770.5,2769.3,4.15948987]
[1724448844194,9.3327,2770.5,2769.5,3.61072]
[1724448844395,9.3327,2770.5,2769.6,3.6105]
[1724448844396,3.0,2770.4,2769.6,3.6105]
[1724448844692,3.0,2770.4,2769.8,3.61036]
[1724448844898,9.3327,2770.5,2769.6,3.61057]
[1724448845039,9.3327,2770.5,2769.6,4.332699]
[1724448845467,12.94216,2770.5,2769.6,0.722129]
[1724448846858,0.661046,2769.6,2768.9,3.61152]
[1724448847125,0.661046,2769.6,2768.4,4.15948987]
[1724448847126,9.3327,2769.5,2768.6,3.61191]
[1724448847252,3.0,2769.4,2768.7,3.61179]
[1724448847589,4.2993746,2769.4,2768.8,3.61164]
[1724448848484,4.2993746,2769.4,2768.3,9.6612]
[1724448848485,7.9103646,2769.4,2768.4,3.61218]
[1724448848691,4.2993746,2769.4,2768.5,3.61206]
[1724448848987,4.2993746,2769.4,2768.5,5.300614]
[1724448849188,4.2993746,2769.4,2768.6,3.61191]
[1724448849397,3.0,2769.4,2768.5,5.300614]
[1724448849966,6.6109,2769.4,2768.5,3.61206]
[1724448850792,6.6109,2769.4,2768.5,3.610713]
[1724448851227,3.0,2769.4,2768.6,3.61192]
[1724448851411,6.61094,2769.4,2768.3,13.27347]
[1724448851730,1.95544,2769.3,2768.5,3.61197]
[1724448852285,5.56646,2769.3,2768.5,3.61197]
[1724448853539,3.61117,2769.2,2768.4,19.34]
[1724448853887,3.61143,2769.0,2768.4,19.34]
[1724448854116,4.333901,2768.9,2768.4,19.34]
[1724448854698,7.945551,2768.9,2768.4,19.34]
[1724448854856,4.333901,2768.9,2768.4,19.34]
[1724448855201,0.722271,2768.9,2768.4,19.34]
[1724448855964,4.333821,2768.9,2768.4,19.34]
[1724448856834,5.0356021,2768.8,2768.4,19.34]
[1724448857178,5.0356021,2768.8,2768.0,19.34]
[1724448857531,3.61182,2768.7,2768.0,19.34]
[1724448857826,1.4238421,2768.8,2768.0,19.34]
[1724448858044,1.4238421,2768.8,2768.1,3.61249]
[1724448858853,3.61081,2769.5,2768.2,9.7311]
[1724448859035,3.61082,2769.5,2768.3,29.5766972]
[1724448859243,3.61115,2769.2,2768.3,29.5766972]
[1724448859440,3.61076,2769.5,2768.7,3.6117]
[1724448859622,9.7688,2769.6,2768.9,3.61153]
[1724448859858,9.7688,2769.9,2769.1,3.6112]
[1724448860150,3.60993,2770.2,2769.4,3.61081]
[1724448860318,3.60993,2770.2,2769.3,3.61089]
[1724448860516,3.60998,2770.1,2769.3,3.61089]
[1724448861304,3.61019,2770.0,2769.1,3.6112]
[1724448861552,3.971209,2770.0,2769.2,3.61106]
[1724448862236,0.361019,2770.0,2769.3,3.61097]
[1724448862450,0.361019,2770.0,2769.3,7.22194]
[1724448862648,0.361019,2770.0,2769.3,3.61097]
[1724448862813,3.361019,2770.0,2769.3,3.61094]
[1724448863012,0.361019,2770.0,2769.4,3.61081]
[1724448863223,6.60992,2770.2,2769.4,3.61081]
[1724448863638,10.21987,2770.2,2769.3,3.61094]
[1724448863841,6.60992,2770.2,2769.3,7.22188]
[1724448864041,6.60992,2770.2,2769.3,7.22186]
[1724448864471,9.7688,2770.3,2769.4,9.7311]
[1724448864753,13.37819,2770.6,2769.7,3.61038]
[1724448865346,13.37819,2770.6,2769.8,3.61032]
[1724448865548,9.7688,2770.6,2769.9,3.61023]
[1724448865751,3.6094,2770.6,2769.8,22.95033]
[1724448865956,3.97034,2770.6,2769.8,22.95033]
[1724448866133,0.36094,2770.6,2769.9,3.61022]
[1724448866468,13.37774,2770.9,2770.0,3.6101]
[1724448866795,3.60906,2770.8,2770.0,3.6101]
[1724448867069,3.60906,2770.8,2770.0,7.22013]
[1724448867264,3.0,2770.7,2770.0,3.61003]
[1724448867448,3.0,2770.7,2770.0,3.61002]
[1724448868932,6.60919,2770.7,2769.9,19.34]
[1724448869138,4.998705,2770.7,2770.0,3.61002]
[1724448869332,3.0,2770.7,2770.0,3.61002]
[1724448870715,3.0,2770.7,2770.1,3.60994]
[1724448870875,3.0,2770.8,2770.1,3.60994]
[1724448871070,3.0,2770.8,2770.2,3.60984]
[1724448871310,9.7688,2770.9,2770.2,4.331826]
[1724448871508,13.37776,2770.9,2770.2,0.721986]
[1724448871676,13.37776,2770.9,2770.1,3.60994]
[1724448871876,9.7688,2770.9,2770.1,3.60994]
[1724448872305,13.37774,2770.9,2770.1,3.60994]
[1724448872623,9.7688,2770.9,2770.2,3.60983]
[1724448872803,13.37774,2770.9,2770.2,3.60983]
[1724448872972,1.698657,2770.8,2770.2,3.60983]
[1724448873417,1.698657,2770.8,2770.1,3.60996]
[1724448875210,3.60894,2770.9,2770.2,3.60981]
[1724448876574,6.60877,2771.1,2770.3,3.6097]
[1724448876987,3.0,2771.1,2770.2,3.60981]
[1724448877246,6.60877,2771.1,2770.3,3.6097]
[1724448877418,8.614199,2771.1,2770.3,3.6097]
[1724448878029,3.60881,2771.0,2770.3,3.6097]
[1724448878181,3.0,2770.9,2770.3,3.6097]
[1724448880390,8.614179,2771.1,2770.3,3.6097]
[1724448881236,3.60882,2771.0,2770.3,3.6097]
[1724448881442,3.853946,2770.9,2770.3,3.6097]
[1724448881833,3.853946,2770.9,2770.2,3.60983]
[1724448882199,3.853946,2770.9,2770.2,22.94983]
[1724448883049,7.462896,2770.9,2770.2,19.34]
[1724448883346,3.853946,2770.9,2770.2,19.34]
[1724448883499,0.7462766,2770.8,2770.2,19.34]
[1724448883846,9.3433,2771.6,2770.3,9.8442]
[1724448884149,9.3433,2771.9,2771.3,3.6083]
[1724448884313,9.3433,2772.2,2771.4,3.60826]
[1724448884507,10.638351,2772.2,2771.5,3.60813]
[1724448884695,3.60699,2772.4,2771.5,3.60813]
[1724448884896,3.60609,2773.1,2772.1,3.60736]
[1724448885140,3.60609,2773.1,2772.2,3.60723]
[1724448886526,3.0,2773.0,2772.2,3.60723]
[1724448886741,3.60609,2773.1,2772.2,3.60723]
[1724448886945,0.360609,2773.0,2772.2,3.60723]
[1724448887744,3.60584,2773.3,2772.2,13.45143]
[1724448888038,12.949,2773.4,2772.4,3.60697]
[1724448888638,3.6057,2773.4,2772.5,9.8442]
[1724448888845,9.3433,2773.9,2772.5,9.8442]
[1724448889157,3.60557,2773.5,2772.6,3.6067]
[1724448889330,9.3433,2773.3,2772.3,3.60707]
[1724448890728,3.60595,2773.2,2772.3,3.60707]
[1724448890928,9.3433,2773.3,2772.3,3.60707]
[1724448891157,12.94914,2773.3,2772.3,3.60707]
[1724448891360,1.294914,2773.2,2772.3,3.60707]
[1724448891544,4.900894,2773.2,2772.3,3.60707]
[1724448894278,3.60568,2773.4,2772.5,13.22321]
[1724448894579,3.55,2773.3,2772.5,13.22321]
[1724448894787,3.60598,2773.2,2772.5,9.6164]
[1724448895079,7.15582,2773.3,2772.5,9.6164]
[1724448895304,1.07615,2773.2,2772.5,9.6164]
[1724448896201,1.07615,2773.2,2772.5,13.22322]
[1724448896383,1.07615,2773.2,2772.5,3.60682]
[1724448897480,4.68213,2773.2,2772.3,22.94702]
[1724448897831,1.07615,2773.2,2772.3,22.947]
[1724448898030,1.07615,2773.2,2772.3,26.68846478]
[1724448898453,1.07615,2773.2,2772.5,3.60683]
[1724448900920,1.07615,2773.2,2772.6,9.589]
[1724448902501,1.07615,2773.2,2772.6,13.1957]
[1724448903228,1.07615,2773.2,2772.6,9.589]
[1724448903437,0.823197,2773.1,2772.6,9.589]
[1724448903802,9.0082,2772.9,2772.4,19.34]
[1724448903992,12.61454,2772.9,2772.4,19.34]
[1724448904339,9.0082,2772.9,2772.4,19.34]
[1724448904492,1.261448,2772.8,2772.4,19.34]
[1724448906036,3.60674,2772.6,2772.3,19.34]
[1724448906354,3.60674,2772.6,2772.4,19.34]
[1724448907295,15.61505,2772.5,2772.4,19.34]
[1724448907934,12.0082,2772.5,2772.4,19.34]
[1724448908097,12.78293,2772.5,2772.4,19.34]
[1724448908292,3.77473,2772.5,2772.0,3.60743]
[1724448908535,3.0,2772.6,2772.0,3.60743]
[1724448908703,3.0,2772.6,2771.9,3.60754]
[1724448908909,3.0,2772.6,2772.1,3.60736]
[1724448909109,3.0,2772.7,2772.1,3.60736]
[1724448909311,3.0,2772.7,2772.0,3.60748]
[1724448909512,1.597927,2772.6,2772.0,3.60748]
[1724448909728,1.597927,2772.6,2771.9,3.60756]
[1724448909902,5.204667,2772.6,2771.9,3.60756]
[1724448910308,3.60685,2772.5,2771.7,7.21559]
[1724448910509,5.204667,2772.6,2771.8,3.60774]
[1724448910740,0.8204667,2772.5,2771.8,3.60774]
[1724448911693,3.60674,2772.6,2771.9,9.6092]
[1724448911926,3.0,2773.0,2772.3,3.60704]
[1724448912197,3.606,2773.2,2772.5,3.60682]
[1724448912395,7.21152,2773.4,2772.6,3.60665]
[1724448912596,1.672232,2773.3,2772.6,3.60665]
[1724448912869,5.278052,2773.3,2772.6,3.60665]
[1724448913545,1.672232,2773.3,2772.6,3.60665]
[1724448914046,1.672232,2773.3,2772.7,3.60646]
[1724448914344,3.60494,2774.0,2772.5,3.60677]
[1724448914345,9.5108,2774.0,2773.0,3.60618]
[1724448914544,9.4608,2774.0,2773.4,3.60564]
[1724448914710,9.4608,2774.0,2773.2,3.60583]
[1724448914902,13.06577,2774.0,2773.2,4.327027]
[1724448915938,16.67075,2774.0,2773.2,4.327027]
[1724448916145,3.0,2773.9,2773.2,4.327027]
[1724448916297,6.60506,2773.9,2773.2,4.327027]
[1724448916493,6.60506,2773.9,2773.2,3.60583]
[1724448917196,3.0,2773.9,2773.3,9.7874]
[1724448917816,3.0,2773.9,2773.3,13.39317]
[1724448919449,3.0,2773.9,2773.3,9.7874]
[1724448919740,3.0,2773.9,2773.3,13.39312]
[1724448919895,3.0,2773.9,2773.3,14.732432]
[1724448920296,3.0,2774.1,2773.3,14.732432]
[1724448921425,3.60493,2774.0,2773.3,14.732432]
[1724448921613,3.0,2773.9,2773.3,14.732432]
[1724448924237,9.8608,2774.4,2773.4,3.60562]
[1724448924238,13.46524,2774.4,2773.4,3.60562]
[1724448924411,3.60468,2774.2,2773.5,1.8338052]
[1724448925202,3.60468,2774.2,2773.6,9.7874]
[1724448925856,6.60444,2774.4,2773.6,9.7874]
[1724448926035,6.60455,2774.3,2773.6,9.7874]
[1724448926749,3.60469,2774.2,2773.6,9.7874]
[1724448930577,3.60477,2774.1,2773.6,9.7874]
[1724448930746,3.60469,2774.2,2773.6,9.7874]
[1724448931456,4.625601,2774.2,2773.6,9.7874]
[1724448932032,8.230361,2774.2,2773.6,9.7874]
[1724448932347,0.0866941,2774.1,2773.6,9.7874]
[1724448932543,3.6914641,2774.1,2773.6,9.7874]
[1724448933180,3.6049,2774.0,2773.5,19.34]
[1724448933669,0.08775342,2773.9,2773.5,19.34]
[1724448933872,4.625601,2774.2,2773.5,23.08146478]
[1724448933873,7.20943,2774.2,2773.5,23.08146478]
[1724448934262,0.08767276,2773.8,2773.5,23.08146478]
[1724448934596,3.60477,2774.1,2773.5,23.08146478]
[1724448934934,0.08783407,2774.0,2773.5,26.68697478]
[1724448935285,0.08775342,2773.9,2773.6,2.66869748]
[1724448935436,0.08775342,2773.9,2773.5,26.68697478]
[1724448935637,3.60469,2774.2,2773.5,26.68697478]
[1724448935839,0.08767276,2773.8,2773.5,7.34697478]
[1724448936069,3.0,2774.3,2773.5,7.34697478]
[1724448936582,6.60454,2774.3,2773.5,7.34693478]
[1724448936738,0.08799535,2774.2,2773.5,7.34693478]
[1724448938181,0.08799535,2774.2,2773.6,2.66869348]
[1724448939586,0.08799535,2774.2,2773.5,7.34692478]
[1724448940779,3.69267535,2774.2,2773.5,7.34692478]
[1724448941509,3.69267535,2774.2,2773.4,19.34]
[1724448941510,12.88645,2774.1,2773.4,22.94567]
[1724448941908,9.36958718,2774.1,2773.4,22.94567]
[1724448942204,9.36958718,2774.1,2773.4,19.34]
[1724448942415,0.08798718,2774.1,2773.4,27.10503987]
[1724448942597,0.08798718,2774.1,2773.5,3.70594399]
[1724448945330,0.08798718,2774.1,2773.4,27.10503987]
[1724448945498,0.08798718,2774.1,2773.5,3.60551]